[Event "Early-Titled-Tuesday-Blitz-January-30-2024"]
[Site "Chess.com"]
[Date "2024.01.30"]
[Round "3"]
[White "Nikolakis2014"]
[Black "anasta10"]
[Result "1-0"]
[WhiteElo "2756"]
[BlackElo "2510"]
[TimeControl "180+1"]
[EndTime "8:30:30 PST"]
[Termination "Nikolakis2014 won by resignation"]

1. Nf3 {[%clk 0:03:00.9]} 1... Nf6 {[%clk 0:02:59.2]} 2. d4 {[%clk 0:03:00.8]}
2... g6 {[%clk 0:02:59.7]} 3. g3 {[%clk 0:03:00.7]} 3... Bg7 {[%clk 0:03:00.3]}
4. Bg2 {[%clk 0:02:59.6]} 4... O-O {[%clk 0:03:00.9]} 5. O-O {[%clk 0:02:58.1]}
5... d6 {[%clk 0:03:00.1]} 6. Re1 {[%clk 0:02:58.2]} 6... Nc6 {[%clk 0:02:57.3]}
7. e4 {[%clk 0:02:53.5]} 7... e5 {[%clk 0:02:55.3]} 8. d5 {[%clk 0:02:41.7]}
8... Ne7 {[%clk 0:02:51.1]} 9. c4 {[%clk 0:02:41.6]} 9... Nd7 {[%clk 0:02:45.5]}
10. Nc3 {[%clk 0:02:41.3]} 10... a5 {[%clk 0:02:45.5]} 11. Bd2 {[%clk
0:02:36.1]} 11... f5 {[%clk 0:02:34.8]} 12. Ng5 {[%clk 0:02:32.8]} 12... Nc5
{[%clk 0:02:32.4]} 13. Na4 {[%clk 0:02:31.1]} 13... h6 {[%clk 0:01:44.6]} 14.
Nxc5 {[%clk 0:02:23.1]} 14... hxg5 {[%clk 0:01:41.9]} 15. Ne6 {[%clk 0:02:23]}
15... Bxe6 {[%clk 0:01:41.9]} 16. dxe6 {[%clk 0:02:22.6]} 16... f4 {[%clk
0:01:42.7]} 17. Qg4 {[%clk 0:02:10.8]} 17... Nc6 {[%clk 0:01:35.5]} 18. Rad1
{[%clk 0:02:10]} 18... Qe7 {[%clk 0:01:29.3]} 19. Bc3 {[%clk 0:02:00.9]} 19...
Rae8 {[%clk 0:01:23.3]} 20. Bh3 {[%clk 0:01:57.9]} 20... b6 {[%clk 0:00:55.8]}
21. a3 {[%clk 0:01:54.1]} 21... Nd8 {[%clk 0:00:54.1]} 22. c5 {[%clk 0:01:48.5]}
22... bxc5 {[%clk 0:00:50.7]} 23. Bxa5 {[%clk 0:01:48]} 23... Nxe6 {[%clk
0:00:47.4]} 24. Qxe6+ {[%clk 0:01:44.3]} 24... Qxe6 {[%clk 0:00:47.1]} 25. Bxe6+
{[%clk 0:01:44.4]} 25... Rxe6 {[%clk 0:00:48]} 26. Bxc7 {[%clk 0:01:44.4]} 26...
Rff6 {[%clk 0:00:41.4]} 27. b4 {[%clk 0:01:41.7]} 27... cxb4 {[%clk 0:00:26.3]}
28. axb4 {[%clk 0:01:41.4]} 28... Rf7 {[%clk 0:00:24.1]} 29. Bxd6 {[%clk
0:01:38]} 29... Rb7 {[%clk 0:00:23.4]} 30. Bc5 {[%clk 0:01:36.2]} 30... Kf7
{[%clk 0:00:22.1]} 31. Rd8 {[%clk 0:01:27.2]} 31... Bf6 {[%clk 0:00:17.6]} 32.
Rf8+ {[%clk 0:01:23.2]} 32... Kg7 {[%clk 0:00:17.5]} 33. Rc8 {[%clk 0:01:21.8]}
33... Be7 {[%clk 0:00:16.1]} 34. Rc1 {[%clk 0:01:01]} 34... Bxc5 {[%clk
0:00:15.3]} 35. R1xc5 {[%clk 0:01:01]} 35... Ree7 {[%clk 0:00:05.8]} 36. b5
{[%clk 0:00:53.8]} 36... f3 {[%clk 0:00:06.2]} 37. h3 {[%clk 0:00:44.4]} 37...
Red7 {[%clk 0:00:06]} 38. g4 {[%clk 0:00:43]} 38... Rd1+ {[%clk 0:00:05.9]} 39.
Kh2 {[%clk 0:00:43.1]} 39... Rf7 {[%clk 0:00:04.4]} 40. R5c7 {[%clk 0:00:41.5]}
40... Rdd7 {[%clk 0:00:04]} 41. Rxd7 {[%clk 0:00:41]} 41... Rxd7 {[%clk
0:00:04.9]} 42. b6 {[%clk 0:00:41.2]} 42... Kf6 {[%clk 0:00:04.8]} 43. Rc6+
{[%clk 0:00:39.4]} 43... Ke7 {[%clk 0:00:02.7]} 44. Kg3 {[%clk 0:00:38.5]} 44...
Rd3 {[%clk 0:00:01.7]} 45. Rxg6 {[%clk 0:00:37.2]} 45... Rb3 {[%clk 0:00:01.5]}
46. Rxg5 {[%clk 0:00:35.8]} 46... Kf6 {[%clk 0:00:02.4]} 47. Rf5+ {[%clk
0:00:35.4]} 47... Ke6 {[%clk 0:00:03.2]} 48. g5 {[%clk 0:00:34.4]} 1-0

[Event "Early-Titled-Tuesday-Blitz-January-30-2024"]
[Site "Chess.com"]
[Date "2024.01.30"]
[Round "3"]
[White "ketster"]
[Black "MaxLeto"]
[Result "1-0"]
[WhiteElo "2587"]
[BlackElo "2364"]
[TimeControl "180+1"]
[EndTime "8:30:30 PST"]
[Termination "ketster won on time"]

1. d4 {[%clk 0:02:57.1]} 1... d5 {[%clk 0:02:59.8]} 2. c4 {[%clk 0:02:54.5]}
2... e6 {[%clk 0:02:59.9]} 3. Nf3 {[%clk 0:02:54]} 3... Nf6 {[%clk 0:03:00]} 4.
g3 {[%clk 0:02:53.7]} 4... Be7 {[%clk 0:03:00.4]} 5. Bg2 {[%clk 0:02:53.4]} 5...
O-O {[%clk 0:03:01.3]} 6. Qc2 {[%clk 0:02:53.7]} 6... dxc4 {[%clk 0:03:02.2]} 7.
O-O {[%clk 0:02:45.3]} 7... a6 {[%clk 0:03:02.1]} 8. a4 {[%clk 0:02:42.3]} 8...
Nc6 {[%clk 0:03:02]} 9. Qxc4 {[%clk 0:02:42]} 9... Nb4 {[%clk 0:03:01.4]} 10.
Bg5 {[%clk 0:02:31]} 10... b5 {[%clk 0:02:59.2]} 11. Qc1 {[%clk 0:02:24.8]}
11... Bb7 {[%clk 0:02:57.6]} 12. Nc3 {[%clk 0:02:15.7]} 12... bxa4 {[%clk
0:02:16.8]} 13. Nxa4 {[%clk 0:02:14.8]} 13... h6 {[%clk 0:01:59.9]} 14. Bf4
{[%clk 0:02:08]} 14... Nfd5 {[%clk 0:01:53.8]} 15. Be5 {[%clk 0:01:52.3]} 15...
Bd6 {[%clk 0:00:57.5]} 16. Nc5 {[%clk 0:01:46.2]} 16... Bc6 {[%clk 0:00:56]} 17.
e4 {[%clk 0:01:31.9]} 17... Nb6 {[%clk 0:00:49]} 18. Rd1 {[%clk 0:01:01.3]}
18... Qe7 {[%clk 0:00:47.3]} 19. Qc3 {[%clk 0:00:41.9]} 19... a5 {[%clk
0:00:47.5]} 20. Ra3 {[%clk 0:00:31]} 20... Rfd8 {[%clk 0:00:46.8]} 21. Rda1
{[%clk 0:00:30]} 21... f6 {[%clk 0:00:40.7]} 22. Bf4 {[%clk 0:00:21.7]} 22...
Bxf4 {[%clk 0:00:03]} 23. gxf4 {[%clk 0:00:22.6]} 23... f5 {[%clk 0:00:03.9]}
24. d5 {[%clk 0:00:14.5]} 24... exd5 {[%clk 0:00:03]} 25. exf5 {[%clk 0:00:09]}
25... d4 {[%clk 0:00:01.7]} 26. Nxd4 {[%clk 0:00:06.3]} 26... Bxg2 {[%clk
0:00:02.6]} 27. Kxg2 {[%clk 0:00:06]} 27... N6d5 {[%clk 0:00:02.5]} 28. Qc4
{[%clk 0:00:05.1]} 28... Kh8 {[%clk 0:00:02.2]} 29. Rf3 {[%clk 0:00:04.2]} 29...
Qh4 {[%clk 0:00:01.9]} 30. Kh1 {[%clk 0:00:03.2]} 30... Nxf4 {[%clk 0:00:02.3]}
31. Nde6 {[%clk 0:00:02.3]} 31... Qg4 {[%clk 0:00:01.1]} 32. Qxf4 {[%clk
0:00:02.2]} 1-0

[Event "Early-Titled-Tuesday-Blitz-January-30-2024"]
[Site "Chess.com"]
[Date "2024.01.30"]
[Round "3"]
[White "ahkashefi2800"]
[Black "DonJuanEGenaro"]
[Result "0-1"]
[WhiteElo "2538"]
[BlackElo "2006"]
[TimeControl "180+1"]
[EndTime "8:30:30 PST"]
[Termination "DonJuanEGenaro won on time"]

1. Nf3 {[%clk 0:03:00.1]} 1... d5 {[%clk 0:02:57.8]} 2. g3 {[%clk 0:02:59.5]}
2... c6 {[%clk 0:02:57.3]} 3. Bg2 {[%clk 0:02:59.7]} 3... Nf6 {[%clk 0:02:57.4]}
4. O-O {[%clk 0:03:00.5]} 4... Bf5 {[%clk 0:02:57.6]} 5. c4 {[%clk 0:02:56.5]}
5... e6 {[%clk 0:02:54.4]} 6. Qb3 {[%clk 0:02:55.9]} 6... Qc8 {[%clk 0:02:46.8]}
7. d3 {[%clk 0:02:54]} 7... Nbd7 {[%clk 0:02:43.3]} 8. Nc3 {[%clk 0:02:53.9]}
8... Nc5 {[%clk 0:02:42.9]} 9. Qc2 {[%clk 0:02:54]} 9... a5 {[%clk 0:02:42.5]}
10. Re1 {[%clk 0:02:44.4]} 10... dxc4 {[%clk 0:02:42.1]} 11. Bg5 {[%clk
0:01:57.9]} 11... cxd3 {[%clk 0:02:38.2]} 12. Qd1 {[%clk 0:01:57.4]} 12... dxe2
{[%clk 0:02:29.5]} 13. Rxe2 {[%clk 0:01:47.6]} 13... Be7 {[%clk 0:02:28.9]} 14.
Qd4 {[%clk 0:01:43.8]} 14... Ncd7 {[%clk 0:02:17.2]} 15. Qh4 {[%clk 0:01:21.6]}
15... h6 {[%clk 0:02:12.5]} 16. Nd4 {[%clk 0:01:20.2]} 16... Bh7 {[%clk
0:01:54.5]} 17. Bxf6 {[%clk 0:00:51.3]} 17... Bxf6 {[%clk 0:01:53.4]} 18. Qg4
{[%clk 0:00:50.5]} 18... h5 {[%clk 0:01:45]} 19. Qxh5 {[%clk 0:00:44.8]} 19...
Bxd4 {[%clk 0:01:38.6]} 20. Rxe6+ {[%clk 0:00:44.4]} 20... Kf8 {[%clk
0:01:36.5]} 21. Re2 {[%clk 0:00:25]} 21... Nf6 {[%clk 0:01:20.7]} 22. Qh4 {[%clk
0:00:24.8]} 22... Qg4 {[%clk 0:01:11.5]} 23. Qxg4 {[%clk 0:00:11.9]} 23... Nxg4
{[%clk 0:01:11.3]} 24. Ne4 {[%clk 0:00:12]} 24... Re8 {[%clk 0:01:08.3]} 25. Rd1
{[%clk 0:00:04.2]} 25... c5 {[%clk 0:01:03.3]} 26. h3 {[%clk 0:00:02.4]} 26...
Nxf2 {[%clk 0:00:51.7]} 27. Rxd4 {[%clk 0:00:02.5]} 27... cxd4 {[%clk
0:00:41.1]} 28. Kxf2 {[%clk 0:00:01.8]} 28... Bxe4 {[%clk 0:00:39.8]} 29. Bxe4
{[%clk 0:00:01.5]} 29... g6 {[%clk 0:00:38.3]} 30. Kg2 {[%clk 0:00:01.7]} 30...
Kg7 {[%clk 0:00:38]} 31. h4 {[%clk 0:00:01.7]} 31... Re5 {[%clk 0:00:37.8]} 32.
Kf3 {[%clk 0:00:02.6]} 32... Rhe8 {[%clk 0:00:37.5]} 33. b3 {[%clk 0:00:01.6]}
33... f5 {[%clk 0:00:37.1]} 34. Bd3 {[%clk 0:00:01.8]} 34... Re3+ {[%clk
0:00:37]} 35. Kf2 {[%clk 0:00:02]} 35... Kf6 {[%clk 0:00:36]} 36. Rd2 {[%clk
0:00:01.9]} 36... Ke5 {[%clk 0:00:34.8]} 37. Bb5 {[%clk 0:00:02.1]} 37... Re7
{[%clk 0:00:33.2]} 38. Bc4 {[%clk 0:00:02.9]} 38... f4 {[%clk 0:00:33.2]} 39.
gxf4+ {[%clk 0:00:03]} 39... Kxf4 {[%clk 0:00:33.2]} 40. Rxd4+ {[%clk
0:00:03.2]} 40... R7e4 {[%clk 0:00:31.6]} 0-1

[Event "Early-Titled-Tuesday-Blitz-January-30-2024"]
[Site "Chess.com"]
[Date "2024.01.30"]
[Round "3"]
[White "VitaliyBernadskiy"]
[Black "Aygehovit1992"]
[Result "1-0"]
[WhiteElo "2919"]
[BlackElo "2689"]
[TimeControl "180+1"]
[EndTime "8:30:31 PST"]
[Termination "VitaliyBernadskiy won by resignation"]

1. e4 {[%clk 0:03:00.9]} 1... c5 {[%clk 0:03:00.3]} 2. Nc3 {[%clk 0:03:01.6]}
2... Nc6 {[%clk 0:03:00.7]} 3. g3 {[%clk 0:03:00.6]} 3... g6 {[%clk 0:03:00.4]}
4. Bg2 {[%clk 0:03:01.2]} 4... Bg7 {[%clk 0:03:00.6]} 5. d3 {[%clk 0:03:01.8]}
5... Rb8 {[%clk 0:02:59.9]} 6. f4 {[%clk 0:03:00.9]} 6... b5 {[%clk 0:02:59.5]}
7. Nf3 {[%clk 0:03:01.6]} 7... b4 {[%clk 0:02:58.1]} 8. Ne2 {[%clk 0:03:02.2]}
8... e6 {[%clk 0:02:57.7]} 9. O-O {[%clk 0:03:02.3]} 9... Nge7 {[%clk
0:02:58.1]} 10. g4 {[%clk 0:03:01.2]} 10... f5 {[%clk 0:02:57.7]} 11. gxf5
{[%clk 0:03:00.8]} 11... exf5 {[%clk 0:02:53.2]} 12. Ng3 {[%clk 0:03:00.7]}
12... O-O {[%clk 0:02:31.2]} 13. Kh1 {[%clk 0:03:00]} 13... d5 {[%clk
0:02:28.3]} 14. e5 {[%clk 0:02:59.6]} 14... d4 {[%clk 0:02:23.6]} 15. Qe2 {[%clk
0:02:58.8]} 15... Be6 {[%clk 0:02:16.4]} 16. Bd2 {[%clk 0:02:47.8]} 16... Qd7
{[%clk 0:02:16.5]} 17. b3 {[%clk 0:02:47.8]} 17... Bd5 {[%clk 0:02:14.8]} 18. h4
{[%clk 0:02:45.3]} 18... Nd8 {[%clk 0:02:11.8]} 19. h5 {[%clk 0:02:44.7]} 19...
Ne6 {[%clk 0:02:11.7]} 20. Kg1 {[%clk 0:02:37.5]} 20... Bh6 {[%clk 0:02:02]} 21.
Nh4 {[%clk 0:02:34.9]} 21... Kf7 {[%clk 0:01:49.5]} 22. hxg6+ {[%clk 0:02:18.5]}
22... hxg6 {[%clk 0:01:50.4]} 23. Bxd5 {[%clk 0:02:18.7]} 23... Qxd5 {[%clk
0:01:50.7]} 24. a3 {[%clk 0:01:54.6]} 24... a5 {[%clk 0:01:39.3]} 25. axb4
{[%clk 0:01:54.5]} 25... cxb4 {[%clk 0:01:39.7]} 26. Rf2 {[%clk 0:01:41.7]}
26... Rg8 {[%clk 0:01:34]} 27. Raf1 {[%clk 0:01:36]} 27... Ke8 {[%clk
0:01:18.7]} 28. Rh2 {[%clk 0:01:33.5]} 28... Kd7 {[%clk 0:01:15.9]} 29. Ng2
{[%clk 0:01:28.6]} 29... Rh8 {[%clk 0:01:10.4]} 30. Ra1 {[%clk 0:01:26.6]} 30...
Rbc8 {[%clk 0:01:07]} 31. Qd1 {[%clk 0:01:23.9]} 31... g5 {[%clk 0:01:00.9]} 32.
Nh5 {[%clk 0:01:19]} 32... Qa8 {[%clk 0:00:40.2]} 33. Bxb4 {[%clk 0:01:14.4]}
33... Nc6 {[%clk 0:00:31.9]} 34. Bd6 {[%clk 0:01:10.7]} 34... gxf4 {[%clk
0:00:24]} 35. Nf6+ {[%clk 0:01:10.8]} 35... Kd8 {[%clk 0:00:24.3]} 36. Qh5
{[%clk 0:01:06.6]} 36... Qb7 {[%clk 0:00:21]} 37. Qxf5 {[%clk 0:01:04.8]} 37...
Qf7 {[%clk 0:00:20.3]} 38. b4 {[%clk 0:00:47.4]} 38... Nxb4 {[%clk 0:00:17.8]}
39. Rxa5 {[%clk 0:00:41.3]} 39... Nxc2 {[%clk 0:00:14.4]} 40. Rd5 {[%clk
0:00:24.6]} 40... f3 {[%clk 0:00:12.9]} 41. Bb8+ {[%clk 0:00:23.8]} 41... Ke7
{[%clk 0:00:09.3]} 42. Rd7+ {[%clk 0:00:24]} 42... Kf8 {[%clk 0:00:09.6]} 43.
Rxf7+ {[%clk 0:00:21.8]} 43... Kxf7 {[%clk 0:00:10.1]} 44. Nd5+ {[%clk
0:00:22.2]} 44... Kg7 {[%clk 0:00:08.2]} 45. Qf6+ {[%clk 0:00:22.7]} 1-0

[Event "Early-Titled-Tuesday-Blitz-January-30-2024"]
[Site "Chess.com"]
[Date "2024.01.30"]
[Round "3"]
[White "MITerryble"]
[Black "Witik"]
[Result "1-0"]
[WhiteElo "2983"]
[BlackElo "2675"]
[TimeControl "180+1"]
[EndTime "8:30:31 PST"]
[Termination "MITerryble won by resignation"]

1. d4 {[%clk 0:02:59.1]} 1... d5 {[%clk 0:02:59.6]} 2. Nf3 {[%clk 0:02:58.5]}
2... Nf6 {[%clk 0:02:59.5]} 3. c4 {[%clk 0:02:59]} 3... c6 {[%clk 0:02:59.7]} 4.
Nc3 {[%clk 0:02:59.2]} 4... e6 {[%clk 0:03:00]} 5. Bg5 {[%clk 0:02:59.3]} 5...
h6 {[%clk 0:02:59.1]} 6. Bxf6 {[%clk 0:02:59]} 6... Qxf6 {[%clk 0:02:59]} 7. e3
{[%clk 0:02:59.2]} 7... Nd7 {[%clk 0:02:57.3]} 8. Bd3 {[%clk 0:02:58.7]} 8... g6
{[%clk 0:02:51.7]} 9. Rc1 {[%clk 0:02:57.6]} 9... Qe7 {[%clk 0:02:50.2]} 10. O-O
{[%clk 0:02:57.1]} 10... Bg7 {[%clk 0:02:50.5]} 11. a3 {[%clk 0:02:46.5]} 11...
O-O {[%clk 0:02:46.5]} 12. Qe2 {[%clk 0:02:34.3]} 12... dxc4 {[%clk 0:02:22.5]}
13. Bxc4 {[%clk 0:02:35.2]} 13... b5 {[%clk 0:02:22.7]} 14. Ba2 {[%clk 0:02:24]}
14... b4 {[%clk 0:01:48.9]} 15. axb4 {[%clk 0:02:18.2]} 15... Qxb4 {[%clk
0:01:48.6]} 16. Ne4 {[%clk 0:02:16.2]} 16... Rb8 {[%clk 0:01:48.8]} 17. Rc2
{[%clk 0:02:14.1]} 17... Qa5 {[%clk 0:01:43.2]} 18. Ra1 {[%clk 0:02:09.1]} 18...
Ba6 {[%clk 0:01:17.3]} 19. Qd1 {[%clk 0:02:09]} 19... Qb6 {[%clk 0:00:57.1]} 20.
h4 {[%clk 0:01:58.9]} 20... Bb5 {[%clk 0:00:37.3]} 21. Bc4 {[%clk 0:01:53.1]}
21... Nf6 {[%clk 0:00:31.5]} 22. Nc5 {[%clk 0:01:49.9]} 22... Rfd8 {[%clk
0:00:28.8]} 23. Bxb5 {[%clk 0:01:43.9]} 23... cxb5 {[%clk 0:00:24.5]} 24. Ra6
{[%clk 0:01:42.9]} 24... Qc7 {[%clk 0:00:22.9]} 25. Nxe6 {[%clk 0:01:41.3]}
25... Qb7 {[%clk 0:00:23.5]} 26. Nxd8 {[%clk 0:01:16]} 26... Qxa6 {[%clk
0:00:23.6]} 27. Nc6 {[%clk 0:01:16.8]} 27... Re8 {[%clk 0:00:23.8]} 28. Nfe5
{[%clk 0:01:12.4]} 28... Qa2 {[%clk 0:00:21.2]} 29. b4 {[%clk 0:00:57.4]} 29...
Qe6 {[%clk 0:00:19.4]} 30. Nxa7 {[%clk 0:00:55.3]} 30... Nd5 {[%clk 0:00:18.6]}
31. Nac6 {[%clk 0:00:39.1]} 31... Qf5 {[%clk 0:00:17.2]} 32. Rc5 {[%clk
0:00:35]} 32... Qe4 {[%clk 0:00:10]} 33. Qf3 {[%clk 0:00:35.1]} 33... Qb1+
{[%clk 0:00:09.9]} 34. Kh2 {[%clk 0:00:35.3]} 34... Nf6 {[%clk 0:00:10.5]} 35.
Rxb5 {[%clk 0:00:29.1]} 35... h5 {[%clk 0:00:11]} 36. Rb7 {[%clk 0:00:26.4]}
36... Qb3 {[%clk 0:00:10]} 37. b5 {[%clk 0:00:25.8]} 37... Rf8 {[%clk
0:00:06.5]} 38. g3 {[%clk 0:00:25]} 38... Qe6 {[%clk 0:00:06.2]} 39. Kg2 {[%clk
0:00:25.4]} 39... Nd5 {[%clk 0:00:05.9]} 40. Kh2 {[%clk 0:00:23]} 40... Nf6
{[%clk 0:00:06.3]} 41. b6 {[%clk 0:00:22.1]} 41... Ra8 {[%clk 0:00:06]} 42. Ra7
{[%clk 0:00:20.9]} 42... Re8 {[%clk 0:00:05.9]} 43. b7 {[%clk 0:00:21.2]} 1-0

[Event "Early-Titled-Tuesday-Blitz-January-30-2024"]
[Site "Chess.com"]
[Date "2024.01.30"]
[Round "3"]
[White "1977Ivan"]
[Black "only_strong_moves"]
[Result "1-0"]
[WhiteElo "2795"]
[BlackElo "2531"]
[TimeControl "180+1"]
[EndTime "8:30:31 PST"]
[Termination "1977Ivan won by resignation"]

1. d4 {[%clk 0:03:00.9]} 1... Nf6 {[%clk 0:02:59.3]} 2. c4 {[%clk 0:03:00.7]}
2... e6 {[%clk 0:02:59.6]} 3. Nc3 {[%clk 0:03:00.5]} 3... Bb4 {[%clk 0:02:57]}
4. Qc2 {[%clk 0:03:00.9]} 4... d5 {[%clk 0:02:55.4]} 5. Bg5 {[%clk 0:02:55.8]}
5... h6 {[%clk 0:02:52.7]} 6. Bh4 {[%clk 0:02:54.8]} 6... c5 {[%clk 0:02:46.5]}
7. e3 {[%clk 0:02:46.9]} 7... Nc6 {[%clk 0:02:45.3]} 8. Nf3 {[%clk 0:02:46.3]}
8... cxd4 {[%clk 0:02:40.6]} 9. exd4 {[%clk 0:02:47.2]} 9... O-O {[%clk
0:02:39.7]} 10. a3 {[%clk 0:02:45.3]} 10... Be7 {[%clk 0:02:37.6]} 11. c5 {[%clk
0:02:44.8]} 11... e5 {[%clk 0:02:16]} 12. dxe5 {[%clk 0:02:40.6]} 12... Ng4
{[%clk 0:02:01.5]} 13. Bg3 {[%clk 0:02:38.3]} 13... Bxc5 {[%clk 0:01:50.2]} 14.
O-O-O {[%clk 0:02:11.9]} 14... d4 {[%clk 0:00:47.5]} 15. h3 {[%clk 0:02:08.5]}
15... Ngxe5 {[%clk 0:00:35.5]} 16. Nxe5 {[%clk 0:02:03.9]} 16... Qg5+ {[%clk
0:00:27.8]} 17. Kb1 {[%clk 0:01:48.2]} 17... dxc3 {[%clk 0:00:28.1]} 18. Qxc3
{[%clk 0:01:38.8]} 18... Bb6 {[%clk 0:00:17.2]} 19. h4 {[%clk 0:01:27.3]} 19...
Bf5+ {[%clk 0:00:15.8]} 20. Ka1 {[%clk 0:01:23.6]} 20... Qe7 {[%clk 0:00:10.4]}
21. Bc4 {[%clk 0:01:06.7]} 21... Na5 {[%clk 0:00:08.9]} 22. Ba2 {[%clk
0:01:02.9]} 22... Rac8 {[%clk 0:00:08]} 23. Qb4 {[%clk 0:00:47.9]} 23... Qxb4
{[%clk 0:00:04]} 24. axb4 {[%clk 0:00:48.8]} 24... Nc6 {[%clk 0:00:04.3]} 25.
Nxc6 {[%clk 0:00:44.2]} 25... Rxc6 {[%clk 0:00:05.2]} 26. Rhe1 {[%clk 0:00:44]}
26... Rfc8 {[%clk 0:00:03.4]} 27. Bd5 {[%clk 0:00:39.5]} 27... Rc2 {[%clk
0:00:02.2]} 28. Re7 {[%clk 0:00:38.1]} 28... Kh8 {[%clk 0:00:02.1]} 29. Rxf7
{[%clk 0:00:37.1]} 29... Bg6 {[%clk 0:00:02.3]} 30. Rxb7 {[%clk 0:00:36.3]}
30... Bd4 {[%clk 0:00:01.7]} 31. Rxd4 {[%clk 0:00:34.6]} 31... Rc1+ {[%clk
0:00:02.4]} 32. Ka2 {[%clk 0:00:34.9]} 32... Bb1+ {[%clk 0:00:02]} 33. Ka3
{[%clk 0:00:34.6]} 33... Bf5 {[%clk 0:00:01.3]} 34. Rb8 {[%clk 0:00:32.9]} 34...
Ra1+ {[%clk 0:00:02.2]} 35. Ba2 {[%clk 0:00:32.2]} 35... Rxb8 {[%clk 0:00:03.1]}
36. Bxb8 {[%clk 0:00:31.1]} 36... Bb1 {[%clk 0:00:02.2]} 37. b5 {[%clk
0:00:30.7]} 37... Rxa2+ {[%clk 0:00:02.3]} 38. Kb3 {[%clk 0:00:30.6]} 38... Ra5
{[%clk 0:00:02.4]} 39. Kb4 {[%clk 0:00:28.6]} 39... Ra1 {[%clk 0:00:03]} 40. Rd7
{[%clk 0:00:27.6]} 40... Bf5 {[%clk 0:00:01.7]} 41. Rxa7 {[%clk 0:00:26.9]}
41... Rb1 {[%clk 0:00:02.4]} 42. Be5 {[%clk 0:00:26.3]} 42... Rf1 {[%clk
0:00:02]} 43. Bxg7+ {[%clk 0:00:26.1]} 43... Kg8 {[%clk 0:00:01.8]} 44. Bd4
{[%clk 0:00:25.7]} 44... Rxf2 {[%clk 0:00:02.7]} 45. Bxf2 {[%clk 0:00:25.4]} 1-0

[Event "Early-Titled-Tuesday-Blitz-January-30-2024"]
[Site "Chess.com"]
[Date "2024.01.30"]
[Round "3"]
[White "Mourinho_Jose"]
[Black "GelmanAlexander"]
[Result "0-1"]
[WhiteElo "2530"]
[BlackElo "2795"]
[TimeControl "180+1"]
[EndTime "8:30:31 PST"]
[Termination "GelmanAlexander won on time"]

1. e4 {[%clk 0:03:00.9]} 1... c5 {[%clk 0:02:58.1]} 2. Nf3 {[%clk 0:03:00.8]}
2... e6 {[%clk 0:02:58]} 3. c3 {[%clk 0:03:01.1]} 3... b6 {[%clk 0:02:57.9]} 4.
d4 {[%clk 0:03:01]} 4... Bb7 {[%clk 0:02:58.8]} 5. Bd3 {[%clk 0:03:01]} 5... Nf6
{[%clk 0:02:58.8]} 6. Qe2 {[%clk 0:03:01.3]} 6... d5 {[%clk 0:02:58.7]} 7. e5
{[%clk 0:02:58.1]} 7... Nfd7 {[%clk 0:02:58.6]} 8. O-O {[%clk 0:02:57.1]} 8...
Nc6 {[%clk 0:02:58.3]} 9. Bg5 {[%clk 0:02:48.3]} 9... Qc7 {[%clk 0:02:57.9]} 10.
h4 {[%clk 0:02:33.7]} 10... h6 {[%clk 0:02:57.7]} 11. Bf4 {[%clk 0:02:31.2]}
11... Be7 {[%clk 0:02:58]} 12. h5 {[%clk 0:02:30.9]} 12... O-O-O {[%clk
0:02:53.9]} 13. c4 {[%clk 0:02:15.8]} 13... Nb4 {[%clk 0:02:40.6]} 14. cxd5
{[%clk 0:02:07.7]} 14... Nxd5 {[%clk 0:02:16.1]} 15. Bg3 {[%clk 0:02:07.5]}
15... cxd4 {[%clk 0:01:55.6]} 16. Nbd2 {[%clk 0:01:40.9]} 16... Nc5 {[%clk
0:01:55.4]} 17. Rac1 {[%clk 0:01:40.6]} 17... Kb8 {[%clk 0:01:54.1]} 18. a3
{[%clk 0:01:30.5]} 18... a5 {[%clk 0:01:44.4]} 19. Ne4 {[%clk 0:01:06.8]} 19...
a4 {[%clk 0:01:32.2]} 20. Rfd1 {[%clk 0:01:03.7]} 20... Rd7 {[%clk 0:01:30.4]}
21. Bb5 {[%clk 0:01:01.9]} 21... Rdd8 {[%clk 0:01:26.5]} 22. Rxd4 {[%clk
0:00:54.1]} 22... Rc8 {[%clk 0:01:24.8]} 23. Rxa4 {[%clk 0:00:51.9]} 23... Rhd8
{[%clk 0:01:06.8]} 24. b4 {[%clk 0:00:35.2]} 24... Nxe4 {[%clk 0:01:06.7]} 25.
Rxc7 {[%clk 0:00:34.1]} 25... Nxc7 {[%clk 0:01:03.2]} 26. Bc4 {[%clk 0:00:06.1]}
26... Nc3 {[%clk 0:01:00.2]} 27. Qc2 {[%clk 0:00:06.2]} 27... Nxa4 {[%clk
0:00:56.2]} 28. Qxa4 {[%clk 0:00:07.1]} 28... Bg5 {[%clk 0:00:22.5]} 29. Nxg5
{[%clk 0:00:03.2]} 29... hxg5 {[%clk 0:00:23.4]} 30. Kh2 {[%clk 0:00:04.1]}
30... Rd4 {[%clk 0:00:19.7]} 31. Be2 {[%clk 0:00:04.1]} 31... Nd5 {[%clk
0:00:18.8]} 32. Qb3 {[%clk 0:00:02.7]} 32... Rc3 {[%clk 0:00:18.2]} 33. Qb2
{[%clk 0:00:02.5]} 33... g4 {[%clk 0:00:11.4]} 34. Bf1 {[%clk 0:00:01.4]} 34...
Rd1 {[%clk 0:00:10.5]} 35. Be2 {[%clk 0:00:01.7]} 35... Re1 {[%clk 0:00:10.7]}
36. Bxg4 {[%clk 0:00:02]} 36... Rcc1 {[%clk 0:00:10.7]} 0-1